bitfinex/quotes_ETHUSD_20251012
["timestamp","ask_amount","ask_price","bid_price","bid_amount"]
[1760303709586,4.76963081,4160.2,4159.1,0.6336]
[1760303709875,2.40356181,4160.5,4159.1,0.6336]
[1760303709876,4.32357223,4160.5,4159.2,2.40426623]
[1760303710079,4.32357223,4160.5,4159.4,0.6336]
[1760303710267,2.4036353,4160.4,4159.4,0.6336]
[1760303710575,2.4036353,4160.4,4158.3,0.0107]
[1760303710576,0.455,4160.3,4158.4,3.03835484]
[1760303710787,0.455,4160.2,4158.3,0.002]
[1760303710994,2.4041029,4159.6,4158.4,2.40472869]
[1760303711153,2.4041029,4159.6,4158.3,0.002]
[1760303711154,0.2324,4159.9,4158.3,0.002]
[1760303711358,2.40402469,4159.7,4158.5,0.6336]
[1760303711576,2.40402469,4159.7,4158.5,3.03826729]
[1760303711776,1.92,4159.3,4158.3,0.002]
[1760303711944,0.455,4159.6,4158.3,0.002]
[1760303712145,2.40422912,4159.4,4158.3,0.002]
[1760303712475,2.40435263,4159.2,4158.8,0.12]
[1760303712664,2.52414732,4159.5,4158.8,0.12]
[1760303712860,2.40419532,4159.4,4158.8,0.12]
[1760303713083,2.40425913,4159.3,4158.8,0.12]
[1760303713244,2.375,4159.3,4158.8,0.12]
[1760303713444,0.455,4159.2,4158.8,0.12]
[1760303713653,2.85930852,4159.2,4158.8,0.12]
[1760303713872,2.04,4159.5,4158.9,0.6336]
[1760303714071,0.455,4159.4,4159.1,0.12]
[1760303714275,1.92,4159.1,4158.5,0.12]
[1760303714962,2.40440662,4159.1,4158.5,0.12]
[1760303715298,2.40447157,4159.0,4158.5,0.12]
[1760303715773,2.04,4159.2,4158.5,0.12]
[1760303715973,4.32438241,4159.1,4158.5,0.12]
[1760303716176,2.04,4159.2,4158.5,0.12]
[1760303716380,0.12,4159.2,4158.5,0.12]
[1760303716576,0.12,4159.2,4158.6,0.6336]
[1760303716800,1.92,4159.7,4159.2,0.6336]
[1760303717004,1.92,4159.8,4159.2,0.6336]
[1760303717202,2.1524,4159.9,4159.4,0.12]
[1760303717535,0.455,4159.9,4159.4,0.12]
[1760303717700,0.6874,4159.8,4159.4,0.12]
[1760303717995,0.455,4159.7,4159.4,0.12]
[1760303718201,0.2324,4159.8,4159.4,0.12]
[1760303718400,2.40384615,4160.0,4159.4,0.12]
[1760303718579,1.92,4159.6,4159.4,0.12]
[1760303718764,0.455,4159.7,4159.4,0.12]
[1760303718765,2.375,4159.7,4159.4,0.12]
[1760303718966,0.455,4159.6,4159.4,0.12]
[1760303719197,0.455,4159.6,4158.3,0.002]
[1760303719398,2.40413511,4159.5,4158.3,0.002]
[1760303719600,2.40459024,4158.8,4158.3,0.002]
[1760303719799,2.40449152,4158.9,4158.3,0.002]
[1760303720002,0.2324,4159.9,4158.3,0.002]
[1760303720204,2.40477106,4158.4,4158.3,0.002]
[1760303720403,1.92,4158.6,4157.6,0.002]
[1760303720603,4.32494456,4158.1,4157.6,0.002]
[1760303720797,2.40540735,4157.3,4155.7,0.1307]
[1760303720991,2.40540735,4157.3,4155.9,2.40617415]
[1760303721186,2.86040735,4157.3,4155.7,0.1307]
[1760303721393,4.78040735,4157.3,4155.3,0.002]
[1760303721588,4.78040735,4157.3,4156.0,2.40614061]
[1760303721910,2.375,4157.3,4155.9,2.40616171]
[1760303722224,0.455,4159.0,4157.3,0.6336]
[1760303722422,2.40477373,4158.4,4157.3,0.6336]
[1760303722717,0.455,4158.9,4155.8,1.92]
[1760303722718,2.40396172,4159.8,4156.2,0.1327]
[1760303722902,2.4050231,4158.0,4156.8,0.6336]
[1760303723080,2.40488672,4158.2,4155.6,0.1327]
[1760303723282,2.86006101,4157.9,4156.2,2.40603403]
[1760303723581,2.40540735,4157.3,4155.3,0.002]
[1760303724116,4.78040735,4157.3,4155.3,0.002]
[1760303724414,11.01116035,4157.3,4155.3,0.002]
[1760303724985,8.62509235,4157.3,4155.3,0.002]
[1760303725394,12.27051235,4157.3,4155.3,0.002]
[1760303725594,9.62501235,4157.3,4155.3,0.002]
[1760303725924,4.78040735,4157.3,4155.3,0.002]
[1760303726215,6.96684335,4157.3,4155.3,0.002]
[1760303726398,11.51864935,4157.3,4155.3,0.002]
[1760303726594,12.12791335,4157.3,4155.3,0.002]
[1760303726997,10.45001035,4157.3,4155.3,0.002]
[1760303727238,10.94115955,4157.3,4155.3,0.002]
[1760303727525,2.40650719,4155.4,4155.3,0.002]
[1760303728018,4.78150719,4155.4,4155.3,0.002]
[1760303728217,2.375,4155.4,4155.3,0.002]
[1760303728711,4.78150719,4155.4,4155.3,0.002]
[1760303729107,2.04,4155.4,4155.3,0.002]
[1760303729302,4.90150719,4155.4,4155.3,0.002]
[1760303729606,2.40673886,4155.0,4154.9,0.002]
[1760303729805,2.40673886,4155.0,4154.5,0.002]
[1760303729806,2.40697058,4154.6,4154.5,0.002]
[1760303730243,4.78197058,4154.6,4154.5,0.002]
[1760303730540,2.375,4154.6,4154.5,0.002]
[1760303730740,2.40639418,4155.6,4154.5,0.002]
[1760303730942,1.92,4155.4,4154.5,0.002]
[1760303731309,0.0544,4155.8,4154.5,0.002]
[1760303731310,2.40679086,4155.0,4154.5,0.002]
[1760303731639,0.455,4154.9,4154.5,0.002]
[1760303731844,2.40665798,4155.2,4154.5,0.002]
[1760303732146,0.455,4154.9,4154.5,0.002]
[1760303732742,0.455,4154.8,4154.5,0.002]
[1760303732945,1.92,4155.6,4154.5,0.002]
[1760303733146,0.455,4154.7,4154.5,0.002]
[1760303733324,1.92,4154.8,4154.5,0.002]
[1760303733526,0.455,4154.6,4154.5,0.002]
[1760303734242,2.86197058,4154.6,4154.5,0.002]
[1760303734444,4.78197058,4154.6,4154.5,0.002]
[1760303736952,15.51082304,4155.4,4154.5,0.002]
[1760303736953,0.0544,4155.4,4154.5,0.002]
[1760303737161,0.455,4155.0,4154.5,0.002]
[1760303737679,0.455,4154.9,4154.5,0.002]
[1760303737828,0.455,4155.3,4154.5,0.002]
[1760303738229,1.92,4155.2,4154.5,0.002]
[1760303738672,0.0544,4155.4,4154.5,0.002]
[1760303739150,0.0544,4155.4,4154.8,0.6336]
[1760303739328,0.0544,4155.4,4155.0,0.6336]
[1760303739533,0.0544,4155.4,4155.2,0.12]
[1760303740366,0.0544,4155.4,4155.3,0.7536]
[1760303740666,0.0544,4155.4,4155.3,3.2968651]
[1760303741463,0.001,4157.6,4155.4,0.6336]
[1760303741649,0.001,4157.6,4156.6,2.40579923]
[1760303741849,0.001,4157.6,4155.8,0.6336]
[1760303742161,0.001,4157.6,4157.1,0.6336]
[1760303742363,0.001,4157.6,4157.3,0.6336]
[1760303742748,0.001,4157.6,4157.5,3.03889164]
[1760303743141,0.001,4157.6,4157.5,3.17559164]
[1760303744077,0.001,4157.6,4157.5,3.03889164]
[1760303744687,0.001,4157.6,4157.5,3.17559164]
[1760303745578,0.001,4157.6,4153.7,0.99999999]
[1760303745745,0.001,4157.6,4152.2,2.4083144]
[1760303745746,0.001,4157.6,4157.2,2.40541739]
[1760303745941,0.001,4157.6,4157.0,2.40558071]
[1760303745942,0.001,4157.6,4157.0,0.6336]
[1760303746169,0.001,4157.6,4156.5,0.1367]
[1760303746371,0.001,4157.6,4157.0,2.40556952]
[1760303746542,0.001,4157.6,4157.2,0.6336]
[1760303746747,0.001,4157.6,4157.3,0.6336]
[1760303747149,0.001,4157.6,4157.0,3.03918034]
[1760303747351,0.001,4157.6,4153.8,2.40737973]
[1760303747605,0.001,4157.6,4155.9,0.1367]
[1760303747781,0.001,4157.6,4157.1,2.40551664]
[1760303747979,0.001,4157.6,4157.3,0.6336]
[1760303748575,0.001,4157.6,4157.5,3.03889164]
[1760303751271,0.001,4157.6,4157.5,0.6336]
[1760303751475,0.001,4157.6,4157.5,3.03889164]
[1760303751675,0.001,4157.6,4157.5,3.15889164]
[1760303751875,0.001,4157.6,4157.5,0.6336]
[1760303755898,3.06685152,4157.6,4156.5,2.40585353]
[1760303756084,3.06685152,4157.6,4156.0,0.1367]
[1760303756085,0.6616,4157.6,4156.7,0.6336]
[1760303756290,2.40550531,4157.2,4155.5,0.1367]
[1760303756596,2.40565097,4156.9,4155.8,2.40622032]
[1760303756794,2.40559388,4157.0,4156.0,2.40615112]
[1760303757294,2.40567422,4156.9,4155.9,0.6336]
[1760303757465,1.92,4157.0,4155.9,3.03980398]
[1760303757667,1.92,4157.0,4155.6,2.40635441]
[1760303757668,2.40559065,4157.0,4156.1,0.6336]
[1760303757863,1.92,4157.2,4156.1,0.6336]
[1760303758080,2.40562084,4157.0,4156.1,0.6336]
[1760303758274,2.40565545,4156.9,4156.1,0.6336]
[1760303758500,2.40559013,4157.0,4156.0,3.03974674]
[1760303758903,1.92,4157.1,4155.5,0.1367]
[1760303759102,4.32534949,4157.4,4154.8,0.1367]
[1760303759103,0.4428,4156.9,4154.8,0.1367]
[1760303759610,2.40593718,4156.4,4155.3,0.6356]
[1760303759810,2.40593718,4156.4,4155.5,0.6336]
[1760303760112,2.40599558,4156.3,4155.3,0.002]
[1760303760416,2.40625893,4155.9,4155.3,0.002]
[1760303760615,1.92,4156.3,4155.3,0.002]
[1760303760914,0.4428,4155.8,4155.3,0.002]
[1760303761110,2.40650719,4155.4,4155.3,0.002]
[1760303761321,2.40649076,4155.5,4155.3,0.002]
[1760303761483,0.4428,4156.6,4155.3,0.002]
[1760303761686,2.40551046,4157.2,4156.0,0.6336]
[1760303761884,0.12,4157.5,4156.8,0.12]
[1760303762196,2.40559385,4157.0,4156.3,0.6336]
[1760303762511,2.40569947,4156.8,4155.9,0.6336]
[1760303762884,2.40565616,4156.9,4155.8,3.03983253]
[1760303763210,2.40570365,4156.8,4155.7,0.6336]
[1760303763512,2.40570365,4156.8,4155.9,0.6336]
[1760303763716,4.32563841,4157.0,4156.0,3.03973368]
[1760303763919,2.40610187,4156.1,4155.0,2.40673882]
[1760303764136,1.92,4156.5,4153.8,0.1367]
[1760303764288,2.40650719,4155.4,4153.9,2.40735941]
[1760303764482,2.40650719,4155.4,4154.0,2.40931124]
[1760303764814,2.40673886,4155.0,4154.0,0.002]
[1760303765183,2.40697058,4154.6,4154.0,0.002]
[1760303765717,4.76977058,4154.6,4154.0,0.002]
[1760303766921,2.3628,4154.6,4154.0,0.002]
[1760303767124,4.76977058,4154.6,4154.0,0.002]
[1760303767789,9.24780958,4154.6,4154.0,0.002]
[1760303768194,7.87163758,4154.6,4154.0,0.002]
[1760303768733,8.28935158,4154.6,4154.0,0.002]
[1760303769827,4.76977058,4154.6,4154.0,0.002]
[1760303772031,0.4428,4154.6,4154.0,0.002]
[1760303772191,2.84977058,4154.6,4154.0,0.002]
[1760303775002,1.92,4154.7,4154.0,0.6356]
[1760303775302,0.001,4154.9,4154.5,0.122]
[1760303775648,0.001,4154.9,4154.8,0.7536]
[1760303775803,0.001,4154.9,4154.8,3.16045472]
[1760303776000,0.001,4155.4,4155.0,0.6336]
[1760303776244,0.001,4155.8,4155.6,3.03999137]
[1760303776535,0.001,4157.6,4156.8,0.6336]
[1760303776736,0.001,4157.6,4156.5,0.6336]
[1760303776900,0.001,4157.6,4157.5,0.12]
[1760303778020,2.40623378,4157.6,4157.5,0.12]
[1760303778321,0.001,4157.6,4157.5,0.12]
[1760303778836,5.166,4157.5,4155.2,0.083]
[1760303779039,2.4057275,4156.8,4155.7,2.40628484]
[1760303779238,2.40602806,4156.3,4154.5,0.002]
[1760303779413,4.32586431,4156.6,4155.3,2.40655327]
[1760303779618,2.40604839,4156.2,4155.2,0.6336]
[1760303779936,2.40598686,4156.3,4155.2,3.0401759]
[1760303780163,2.40599717,4156.3,4155.2,2.4065759]
[1760303780320,2.40598609,4156.3,4155.1,2.40666086]
[1760303780637,0.6662,4157.9,4155.2,0.083]
[1760303780808,2.40624471,4157.6,4156.3,0.6336]
[1760303781005,0.001,4157.6,4156.6,0.6336]
[1760303781201,0.001,4157.6,4156.9,0.6336]
[1760303781416,0.001,4157.6,4157.2,2.40546329]
[1760303781621,0.001,4157.6,4157.3,0.6336]
[1760303781859,0.001,4157.6,4156.8,0.6336]
[1760303782053,0.001,4157.6,4157.3,0.6336]
[1760303782630,0.001,4157.6,4157.2,0.6336]
[1760303783030,0.001,4157.6,4157.1,0.6336]
[1760303783250,0.001,4157.6,4157.1,3.03910921]
[1760303783556,0.001,4157.6,4157.1,3.12210921]
[1760303783762,0.001,4157.6,4157.3,0.6336]
[1760303784158,0.001,4157.6,4157.2,0.6336]
[1760303784757,0.001,4157.6,4157.5,3.03889164]
[1760303785198,0.001,4157.6,4157.5,3.12189164]
[1760303787146,0.001,4157.6,4156.4,15.45642304]
[1760303787147,0.001,4157.6,4156.8,0.083]
[1760303787681,0.001,4157.6,4156.9,0.6336]
[1760303787853,0.001,4157.6,4156.9,2.40558924]
[1760303788186,0.001,4157.6,4156.5,0.083]
[1760303788345,0.001,4157.6,4156.6,2.40581244]
[1760303788675,2.40624449,4157.6,4156.7,0.6336]
[1760303788879,0.001,4157.6,4157.5,0.7536]
[1760303789101,2.40623378,4157.6,4157.5,0.7536]
[1760303789404,0.001,4157.6,4157.5,0.7536]
[1760303791100,0.001,4157.6,4157.5,3.12189164]
[1760303791306,0.001,4158.1,4158.0,2.4050024]
[1760303791493,0.05469999,4158.8,4158.4,3.03837106]
[1760303791702,0.05469999,4158.8,4158.4,0.6336]
[1760303792002,0.05469999,4158.8,4158.4,3.03837106]
[1760303792216,0.05469999,4158.8,4158.4,0.6336]
[1760303793079,2.40571323,4158.5,4158.4,0.6336]
[1760303793278,2.40517227,4157.8,4156.6,2.40575467]
[1760303793512,1.92,4158.4,4156.4,0.081]
[1760303793674,0.001,4158.5,4157.5,0.6336]
[1760303794074,0.001,4158.5,4158.2,0.6336]
[1760303794297,0.001,4158.5,4156.9,0.6336]
[1760303794602,0.001,4158.5,4157.7,0.6336]
[1760303794779,0.001,4158.5,4157.4,0.6336]
[1760303794985,0.4463,4158.5,4156.2,2.40600004]
[1760303795293,2.40516667,4157.8,4156.8,0.6336]
[1760303795472,2.40507134,4157.9,4156.8,0.6336]
[1760303795677,0.001,4158.5,4157.6,0.6336]
[1760303796195,2.40477684,4158.4,4157.6,0.6336]
[1760303796522,2.4049542,4158.1,4157.5,0.6336]
[1760303796802,2.40492956,4158.2,4157.3,0.6336]
[1760303797175,2.40484338,4158.3,4157.4,0.6336]
[1760303797605,2.40490366,4158.2,4157.4,0.6336]
[1760303797807,0.4463,4158.5,4157.0,0.6336]
[1760303797990,2.40500632,4158.0,4157.2,0.6336]
[1760303798190,2.40506276,4157.9,4157.0,0.6336]
[1760303798912,2.40501943,4158.0,4157.0,3.03917046]
[1760303799208,2.40511091,4157.9,4157.0,0.6336]
[1760303799414,4.324786,4158.4,4157.2,0.6336]
[1760303799723,0.4463,4158.5,4158.4,0.6336]
[1760303799724,0.001,4158.5,4158.4,0.6336]
[1760303799880,0.001,4158.5,4158.4,3.11937106]
[1760303800979,0.001,4158.5,4158.2,2.40484836]
[1760303800980,0.001,4158.5,4158.3,0.6336]
[1760303801412,0.001,4158.5,4158.4,3.11937106]
[1760303801707,0.001,4158.5,4158.4,0.7146]
[1760303801895,0.001,4158.5,4158.4,0.6336]
[1760303802979,0.4689,4158.5,4156.9,0.081]
[1760303803317,0.001,4158.5,4157.2,0.6336]
[1760303803608,0.001,4158.5,4158.1,0.6336]
[1760303803994,0.001,4158.5,4157.9,3.03865264]
[1760303804406,0.001,4158.5,4158.1,3.03850316]
[1760303804724,0.001,4158.5,4158.1,3.03854069]
[1760303805122,0.001,4158.5,4158.4,3.03837106]
[1760303805625,0.001,4158.5,4158.4,3.11937106]
[1760303807794,0.21107445,4160.7,4158.5,2.40471323]
[1760303808031,0.21107445,4160.7,4160.4,0.6336]
[1760303808323,0.21107445,4160.7,4160.6,3.03709949]
[1760303808636,0.21107445,4160.7,4160.6,3.11809949]
[1760303810192,0.21107445,4160.7,4160.4,2.40360879]
[1760303810394,0.21107445,4160.7,4160.6,3.03709949]
[1760303810616,0.21107445,4160.7,4160.6,3.11809949]
[1760303810818,0.21107445,4160.7,4160.6,0.6336]
[1760303811210,0.21107445,4160.7,4160.6,0.7536]
[1760303812042,0.21107445,4160.7,4160.6,3.23809949]
[1760303812943,0.21107445,4160.7,4160.6,3.21809949]
[1760303817711,0.21107445,4160.7,4160.6,0.7336]
[1760303817917,0.21107445,4160.7,4160.6,0.8146]
[1760303819018,0.21107445,4160.7,4160.6,0.12]
[1760303819960,0.21107445,4160.7,4160.6,0.7536]
[1760303820558,0.21107445,4160.7,4160.6,3.23809949]
[1760303820756,0.21107445,4160.7,4160.6,0.8346]
[1760303820952,0.21107445,4160.7,4160.6,0.7536]
[1760303822445,0.21107445,4160.7,4160.6,0.12]
[1760303823021,2.61451617,4160.7,4160.6,0.12]
[1760303823348,4.99641617,4160.7,4160.6,0.12]
[1760303823544,1.92,4160.6,4159.2,2.40428948]
[1760303823741,2.40380486,4160.1,4159.2,2.40428948]
[1760303823917,2.40380486,4160.1,4155.6,2.54]
[1760303823918,1.92,4160.3,4158.5,0.081]
[1760303824139,2.40384615,4160.0,4157.8,0.081]
[1760303824354,2.40431032,4159.2,4158.3,2.40482063]
[1760303824766,2.40431032,4159.2,4159.1,0.12]
[1760303825483,4.32429901,4159.3,4159.1,0.12]
[1760303825679,2.40430852,4159.2,4159.1,0.7536]
[1760303825980,2.5986,4159.9,4159.1,0.7536]
[1760303826286,2.40430852,4159.2,4159.1,0.12]
[1760303826874,0.6786,4159.9,4159.2,0.6336]
[1760303827058,2.40470463,4158.6,4157.6,2.40519092]
[1760303827258,2.40459906,4158.7,4157.5,2.40727628]
[1760303827464,2.40469158,4158.6,4158.5,0.12]
[1760303827864,2.40495745,4158.1,4157.5,0.002]
[1760303828260,2.40494257,4158.2,4158.0,0.12]
[1760303828465,2.40494456,4158.1,4157.5,0.002]
[1760303828787,4.54193378,4157.6,4157.5,0.002]
[1760303829162,5.00383378,4157.6,4157.5,0.002]
[1760303829494,11.15413578,4157.6,4157.5,0.002]
[1760303829987,4.32552308,4157.1,4157.0,1e-08]
[1760303830191,6.48299808,4157.1,4157.0,1e-08]
[1760303830353,11.01110608,4157.1,4157.0,1e-08]
[1760303830554,9.96749108,4157.1,4157.0,1e-08]
[1760303830747,7.15814256,4156.7,4155.8,0.002]
[1760303830949,6.93462856,4156.7,4155.8,0.002]
[1760303831277,11.93502556,4156.7,4155.8,0.002]
[1760303831460,8.69012956,4156.7,4155.8,0.002]
[1760303831671,7.40460956,4156.7,4155.8,0.002]
[1760303832391,2.40552308,4157.1,4156.3,0.6336]
[1760303832392,10.330384,4157.1,4156.3,0.6336]
[1760303832592,0.4428,4156.7,4156.3,0.6336]
[1760303832887,2.84855456,4156.7,4155.8,0.002]
[1760303834056,2.40473898,4158.5,4156.2,0.6336]
[1760303834263,1.2705097,4161.1,4155.8,0.002]
[1760303834264,0.4428,4157.2,4155.8,0.002]
[1760303834484,2.40557424,4157.1,4155.8,0.002]
[1760303834785,2.40571985,4156.8,4155.8,0.002]
[1760303834990,0.4428,4156.8,4155.8,3.0418743]
[1760303835154,0.4428,4157.8,4155.8,0.203]
[1760303835502,2.40529164,4157.5,4156.3,2.40595455]
[1760303835651,2.40529164,4157.5,4155.8,0.203]
[1760303835652,2.40529164,4157.5,4155.9,0.6336]
[1760303835845,0.4428,4157.8,4155.9,0.6336]
[1760303836170,0.4428,4157.8,4156.4,0.6336]
[1760303836376,2.4054052,4157.4,4156.4,3.03951647]
[1760303836572,2.40540839,4157.3,4156.3,0.6336]
[1760303836775,1.92,4157.7,4156.3,0.6336]
[1760303836952,0.4428,4157.8,4156.4,0.6336]
[1760303837147,2.40539509,4157.4,4156.4,0.6336]
[1760303837377,2.40540739,4157.3,4156.4,0.6336]
[1760303837881,1.92,4156.7,4155.8,0.002]
[1760303838084,2.40621766,4155.9,4155.8,0.002]
[1760303839492,5.00591766,4155.9,4155.8,0.002]
[1760303840960,1.92,4155.9,4155.8,0.002]
[1760303841282,4.76901766,4155.9,4155.8,0.002]
[1760303841849,4.76901766,4155.9,4155.3,0.002]
[1760303841850,4.32627556,4155.8,4155.3,0.002]
[1760303842059,0.12,4155.5,4155.3,0.002]
[1760303842263,2.40673886,4155.0,4154.9,0.002]
[1760303842687,2.40697058,4154.6,4153.6,0.002]
[1760303843062,4.76977058,4154.6,4153.6,0.002]
[1760303843553,4.76977058,4154.6,4153.6,0.6356]
[1760303843881,4.76977058,4154.6,4153.6,0.002]
[1760303844369,2.3628,4154.6,4153.6,0.6356]
[1760303844576,4.76977058,4154.6,4153.6,0.6356]
[1760303845080,4.76977058,4154.6,4154.2,0.6336]
[1760303845081,1.92,4154.6,4154.2,0.6336]
[1760303845450,1.92,4154.6,4154.0,0.6356]
[1760303845654,0.4428,4155.4,4154.0,0.6356]
[1760303845900,0.4428,4155.4,4154.0,2.40931816]
[1760303846085,2.40664961,4155.2,4154.1,0.6336]
[1760303846260,2.40657404,4155.3,4154.1,0.6336]
[1760303846458,4.32657404,4155.3,4154.1,0.6336]
[1760303846657,0.0544,4156.0,4154.7,0.6336]
[1760303847086,0.0544,4156.0,4155.9,0.6336]
[1760303847387,0.0544,4156.0,4155.9,3.03981766]
[1760303847751,0.0544,4156.0,4155.9,0.6336]
[1760303847954,0.0544,4156.0,4155.9,3.03981766]
[1760303849196,0.0544,4156.0,4155.9,0.6336]
[1760303849917,0.0544,4156.0,4155.9,3.24881766]
[1760303851087,1e-08,4156.0,4155.9,3.24881766]
[1760303851616,0.001,4156.4,4156.3,2.40598609]
[1760303851818,0.001,4156.8,4156.7,3.03935456]
[1760303852317,0.001,4156.8,4156.7,3.36735456]
[1760303852717,0.001,4156.8,4152.0,1.30224839]
[1760303852718,0.001,4156.8,4155.1,0.208]
[1760303852894,0.001,4156.8,4155.2,0.208]
[1760303853304,0.001,4156.8,4156.7,2.40575456]
[1760303853505,0.4428,4158.9,4157.9,0.6336]
[1760303853707,2.4046083,4158.7,4157.9,0.6336]
[1760303853907,2.40455339,4158.8,4157.9,3.03865185]
[1760303854118,0.6797,4159.4,4158.0,0.6336]
[1760303854419,0.6797,4159.4,4157.5,0.207]
[1760303854420,2.40481826,4158.4,4157.5,0.6336]
[1760303854715,2.3628,4158.7,4157.2,3.03905881]
[1760303854908,1.92,4158.5,4157.0,0.6336]
[1760303855105,1.92,4158.6,4157.0,0.6336]
[1760303855315,2.40490331,4158.2,4157.2,0.6336]
[1760303855507,2.40495338,4158.1,4157.2,3.03903851]
[1760303855913,2.40488632,4158.3,4157.4,0.6336]
[1760303856114,1.92,4158.4,4156.9,0.207]
[1760303856304,2.40474097,4158.5,4157.7,0.6336]
[1760303857221,2.40478947,4158.4,4157.0,0.6336]
[1760303857732,2.40493961,4158.2,4157.3,0.6336]
[1760303858432,2.40495337,4158.1,4157.3,0.6336]
[1760303859016,2.40496204,4158.1,4157.3,0.6336]
[1760303859293,2.40496204,4158.1,4157.4,0.6336]
[1760303859617,1.92,4158.2,4156.9,0.207]
[1760303859618,2.40501226,4158.0,4157.2,0.6336]
[1760303859819,2.40476998,4158.5,4157.5,0.6336]
[1760303860121,2.40500596,4158.0,4157.5,0.6336]
[1760303860428,2.40452793,4158.9,4155.6,0.207]
[1760303860429,0.666,4157.9,4155.6,0.207]
[1760303860592,2.40543964,4157.3,4155.7,0.207]
[1760303860787,2.40543964,4157.3,4156.5,0.6336]
[1760303861195,2.40543964,4157.3,4156.6,0.6336]
[1760303861395,2.40536674,4157.4,4156.6,3.03939986]
[1760303861808,2.40540736,4157.3,4156.6,0.6336]
[1760303862222,2.40547548,4157.2,4156.5,0.6336]
[1760303862595,2.40547548,4157.2,4157.1,0.12]
[1760303863107,2.40542229,4157.3,4157.1,0.12]
[1760303863308,0.0544,4158.5,4157.9,0.6336]
[1760303863539,0.0544,4158.5,4158.4,3.03837106]
[1760303863697,0.0544,4158.5,4158.4,3.11737106]
[1760303864028,0.0544,4158.5,4158.4,3.32437106]
[1760303864231,0.0544,4158.5,4158.4,0.7126]
[1760303864400,0.0544,4158.5,4158.4,3.11737106]
[1760303864601,0.0554,4158.5,4158.4,0.7126]
[1760303864801,0.0554,4158.5,4158.4,0.6336]
[1760303865117,2.46011323,4158.5,4158.4,0.6336]
[1760303865296,2.46011323,4158.5,4156.8,0.002]
[1760303865297,2.4048702,4158.3,4157.4,2.40534289]
[1760303865627,2.4047819,4158.4,4157.5,3.03888555]
[1760303865809,1.9754,4158.5,4157.5,3.03888555]
[1760303866004,2.40484946,4158.3,4157.5,3.03888555]
[1760303866231,2.40488672,4158.2,4157.3,3.03900575]
[1760303866418,2.40488672,4158.2,4157.3,0.6336]
[1760303866614,2.40488672,4158.2,4157.5,0.6336]
[1760303866809,4.32485334,4158.3,4157.5,3.03888012]
[1760303867010,2.40485334,4158.3,4157.5,3.03888012]
[1760303867209,2.40488918,4158.2,4157.5,0.6336]
[1760303867412,2.40494681,4158.1,4157.5,0.6336]
[1760303867625,2.40494681,4158.1,4157.4,0.6336]
[1760303867881,2.40488428,4158.3,4157.4,3.03893193]
[1760303868055,1.92,4158.4,4157.4,0.6336]
[1760303868232,0.0554,4158.5,4157.7,2.40517593]
[1760303868538,0.0554,4158.5,4158.3,0.6336]
[1760303868739,0.0554,4158.5,4158.4,0.6336]
[1760303869099,0.0554,4158.5,4158.4,3.24537106]
[1760303870735,0.001,4159.0,4158.4,0.8406]
[1760303870937,0.001,4159.0,4158.9,3.03808195]
[1760303871306,0.001,4159.0,4158.9,0.6336]
[1760303872859,0.001,4159.0,4157.6,0.207]
[1760303873018,2.40448195,4158.9,4158.1,2.40493696]
[1760303873213,2.40448195,4158.9,4158.2,0.6336]
[1760303873415,2.40448195,4158.9,4158.8,0.7536]
[1760303874610,2.40543954,4159.0,4158.8,0.7536]
[1760303875214,0.001,4159.0,4158.8,0.7536]
[1760303875421,2.40542728,4159.0,4158.8,0.7536]
[1760303875754,2.40542519,4159.0,4158.9,0.6336]
[1760303875937,2.40542519,4159.0,4158.8,0.12]
[1760303876343,2.40448195,4158.9,4158.8,0.12]
[1760303877021,0.001,4159.0,4158.8,0.12]
[1760303877346,2.40448195,4158.9,4158.8,0.12]
[1760303877523,2.40488783,4158.2,4157.0,0.079]
[1760303877726,2.40499514,4158.1,4157.2,2.40541649]
[1760303877930,2.40499514,4158.1,4157.3,0.6336]
[1760303878165,2.40527995,4157.6,4156.7,2.40574105]
[1760303878454,2.40563881,4156.9,4155.9,0.002]
[1760303878630,1.92,4157.2,4156.1,2.40604524]
[1760303878830,2.40540735,4157.3,4155.9,0.002]
[1760303879035,2.40563881,4156.9,4155.9,0.002]
[1760303879455,4.75593881,4156.9,4155.9,0.002]
[1760303880858,1.92,4156.9,4156.0,2.40615575]
[1760303881060,1.92,4156.9,4156.1,2.40608021]
[1760303881262,1.92,4156.9,4155.9,0.6356]
[1760303881263,2.3503,4156.9,4155.9,0.002]
[1760303881557,2.40569668,4156.8,4155.9,0.002]
[1760303881721,0.23,4157.6,4156.0,0.6336]
[1760303881722,0.6603,4157.6,4156.0,0.6336]
[1760303881922,0.6603,4157.6,4155.9,0.002]
[1760303881923,2.40507713,4157.9,4156.9,2.40559548]
[1760303882126,0.48499999,4158.5,4156.8,0.002]
[1760303882327,2.40528185,4157.6,4156.8,0.002]
[1760303882522,2.4051611,4157.8,4156.8,0.002]
[1760303882721,0.4303,4158.2,4156.8,0.002]
[1760303882722,2.40525175,4157.6,4156.9,0.6336]
[1760303882943,2.40525175,4157.6,4156.8,0.002]
[1760303883143,2.4050024,4158.0,4156.8,0.002]
[1760303883453,2.40541208,4157.3,4156.8,0.002]
[1760303883765,0.23,4157.9,4156.8,0.6356]
[1760303883957,2.40541212,4157.3,4156.8,0.002]
[1760303884748,2.40547339,4157.2,4156.8,0.002]
[1760303885565,2.40511809,4157.8,4156.8,0.002]
[1760303885736,1.92,4157.7,4156.8,0.002]